[Event "Early-Titled-Tuesday-Blitz-January-16-2024"]
[Site "Chess.com"]
[Date "2024.01.16"]
[Round "4"]
[White "bancsoo"]
[Black "PepeCuenca"]
[Result "1-0"]
[WhiteElo "2932"]
[BlackElo "2700"]
[TimeControl "180+1"]
[EndTime "8:41:14 PST"]
[Termination "bancsoo won on time"]

1. Nf3 {[%clk 0:03:00.9]} 1... d5 {[%clk 0:02:58.4]} 2. g3 {[%clk 0:03:00.9]}
2... Nf6 {[%clk 0:02:58]} 3. Bg2 {[%clk 0:03:01.1]} 3... c5 {[%clk 0:02:58.5]}
4. O-O {[%clk 0:03:01.2]} 4... e6 {[%clk 0:02:55.7]} 5. d4 {[%clk 0:02:59.8]}
5... cxd4 {[%clk 0:02:56]} 6. Nxd4 {[%clk 0:03:00.3]} 6... e5 {[%clk 0:02:56.6]}
7. Nb3 {[%clk 0:03:00.7]} 7... Be6 {[%clk 0:02:53.7]} 8. c4 {[%clk 0:02:56.7]}
8... Nc6 {[%clk 0:02:46.1]} 9. cxd5 {[%clk 0:02:55.2]} 9... Bxd5 {[%clk
0:02:41.6]} 10. Nc3 {[%clk 0:02:50.4]} 10... Bxg2 {[%clk 0:02:40.8]} 11. Kxg2
{[%clk 0:02:51.3]} 11... Bb4 {[%clk 0:02:34.4]} 12. Qxd8+ {[%clk 0:02:46.9]}
12... Rxd8 {[%clk 0:02:33.1]} 13. Bg5 {[%clk 0:02:47.4]} 13... Bxc3 {[%clk
0:02:11.5]} 14. Bxf6 {[%clk 0:02:47.5]} 14... gxf6 {[%clk 0:02:00.9]} 15. bxc3
{[%clk 0:02:47.1]} 15... Ke7 {[%clk 0:01:55.4]} 16. a4 {[%clk 0:02:46.3]} 16...
Rc8 {[%clk 0:01:40.9]} 17. Rfb1 {[%clk 0:02:31.1]} 17... Rc7 {[%clk 0:01:34.9]}
18. a5 {[%clk 0:02:22.3]} 18... Rhc8 {[%clk 0:01:31.3]} 19. Ra4 {[%clk
0:01:42.1]} 19... Nd8 {[%clk 0:01:13.2]} 20. Rh4 {[%clk 0:01:41.8]} 20... Rxc3
{[%clk 0:01:12.4]} 21. Rxh7 {[%clk 0:01:42.4]} 21... R8c4 {[%clk 0:01:06.6]} 22.
Nd2 {[%clk 0:01:25.2]} 22... Ra4 {[%clk 0:01:05.1]} 23. Nf3 {[%clk 0:01:16.4]}
23... Rxa5 {[%clk 0:01:01]} 24. Nh4 {[%clk 0:01:16.3]} 24... Ke6 {[%clk
0:00:56.6]} 25. g4 {[%clk 0:01:12.6]} 25... Ra2 {[%clk 0:00:48.7]} 26. Nf5
{[%clk 0:01:00.2]} 26... Rc7 {[%clk 0:00:26]} 27. Rh8 {[%clk 0:00:49.5]} 27...
Nc6 {[%clk 0:00:24.3]} 28. e3 {[%clk 0:00:36.8]} 28... Rd2 {[%clk 0:00:13.7]}
29. Rh6 {[%clk 0:00:31.2]} 29... a5 {[%clk 0:00:03]} 30. Ng7+ {[%clk 0:00:22]}
30... Ke7 {[%clk 0:00:03.1]} 31. Nh5 {[%clk 0:00:22.1]} 31... Rd6 {[%clk
0:00:02.1]} 32. Ng3 {[%clk 0:00:22.6]} 32... Re6 {[%clk 0:00:01.9]} 33. Nf5+
{[%clk 0:00:21.8]} 33... Kd7 {[%clk 0:00:02.5]} 34. Rd1+ {[%clk 0:00:21.7]}
34... Kc8 {[%clk 0:00:02.4]} 35. Rh8+ {[%clk 0:00:22]} 1-0

[Event "Early-Titled-Tuesday-Blitz-January-16-2024"]
[Site "Chess.com"]
[Date "2024.01.16"]
[Round "4"]
[White "SantoBlue"]
[Black "A-Fier"]
[Result "1-0"]
[WhiteElo "2944"]
[BlackElo "2804"]
[TimeControl "180+1"]
[EndTime "8:41:15 PST"]
[Termination "SantoBlue won by resignation"]

1. e4 {[%clk 0:02:59]} 1... Nf6 {[%clk 0:03:00.3]} 2. e5 {[%clk 0:02:57.8]} 2...
Nd5 {[%clk 0:02:58.9]} 3. d4 {[%clk 0:02:58.5]} 3... d6 {[%clk 0:02:59.2]} 4.
Nf3 {[%clk 0:02:59.2]} 4... g6 {[%clk 0:02:59.4]} 5. Bc4 {[%clk 0:02:53.3]} 5...
Nb6 {[%clk 0:02:59.6]} 6. Bb3 {[%clk 0:02:49.4]} 6... Bg7 {[%clk 0:03:00]} 7.
O-O {[%clk 0:02:46.2]} 7... O-O {[%clk 0:02:59.5]} 8. exd6 {[%clk 0:02:41.9]}
8... cxd6 {[%clk 0:02:59.2]} 9. h3 {[%clk 0:02:42.1]} 9... Nc6 {[%clk
0:02:58.7]} 10. Re1 {[%clk 0:02:38.3]} 10... Na5 {[%clk 0:02:57]} 11. Bg5 {[%clk
0:02:37.8]} 11... Re8 {[%clk 0:02:53.1]} 12. Nc3 {[%clk 0:02:38.3]} 12... Bf5
{[%clk 0:02:45.7]} 13. Qd2 {[%clk 0:02:35.3]} 13... Nac4 {[%clk 0:02:44.5]} 14.
Qc1 {[%clk 0:02:34.6]} 14... Rc8 {[%clk 0:02:44.4]} 15. a4 {[%clk 0:02:28.7]}
15... a5 {[%clk 0:02:39.5]} 16. Nb5 {[%clk 0:02:22.7]} 16... Qd7 {[%clk
0:02:34.5]} 17. c3 {[%clk 0:02:17]} 17... e5 {[%clk 0:02:33.2]} 18. dxe5 {[%clk
0:02:14]} 18... dxe5 {[%clk 0:02:34.1]} 19. Rd1 {[%clk 0:02:04.2]} 19... Bd3
{[%clk 0:02:21.1]} 20. Bxc4 {[%clk 0:01:40]} 20... Nxc4 {[%clk 0:02:18.4]} 21.
b3 {[%clk 0:01:40.5]} 21... Nb6 {[%clk 0:02:17.2]} 22. Qe3 {[%clk 0:01:40.4]}
22... Qe6 {[%clk 0:01:59.7]} 23. Rxd3 {[%clk 0:01:37.5]} 23... e4 {[%clk
0:02:00.1]} 24. Rd6 {[%clk 0:01:37.6]} 24... Qxb3 {[%clk 0:01:57.5]} 25. Rxb6
{[%clk 0:01:32.3]} 25... exf3 {[%clk 0:01:58]} 26. Qxf3 {[%clk 0:01:32.9]} 26...
Rxc3 {[%clk 0:01:58.2]} 27. Nxc3 {[%clk 0:01:21.3]} 27... Qxb6 {[%clk 0:01:57]}
28. Nd5 {[%clk 0:01:18.8]} 28... Qc5 {[%clk 0:01:55]} 29. Nf6+ {[%clk
0:01:18.5]} 29... Kh8 {[%clk 0:01:55.2]} 30. Nxe8 {[%clk 0:01:16.3]} 30... Bxa1
{[%clk 0:01:54.9]} 31. Bf6+ {[%clk 0:01:17]} 31... Kg8 {[%clk 0:01:55.4]} 32. g3
{[%clk 0:00:48.3]} 32... Be5 {[%clk 0:01:49.9]} 33. Kg2 {[%clk 0:00:47]} 33...
Kf8 {[%clk 0:01:45.8]} 34. Bxe5 {[%clk 0:00:45.3]} 34... Qxe5 {[%clk 0:01:45.7]}
35. Nf6 {[%clk 0:00:46]} 35... Kg7 {[%clk 0:01:45.5]} 36. Ng4 {[%clk 0:00:42.7]}
36... Qd4 {[%clk 0:01:45.2]} 37. Qxb7 {[%clk 0:00:37.6]} 37... Qxa4 {[%clk
0:01:45.2]} 38. Ne5 {[%clk 0:00:36.5]} 38... Qa2 {[%clk 0:01:45.8]} 39. Qa8
{[%clk 0:00:27.9]} 39... a4 {[%clk 0:01:42.6]} 40. Nd7 {[%clk 0:00:28.4]} 40...
Qa3 {[%clk 0:01:42.8]} 41. Qe4 {[%clk 0:00:22.9]} 41... Qd6 {[%clk 0:01:38.2]}
42. Qxa4 {[%clk 0:00:20.6]} 42... Qd5+ {[%clk 0:01:35.8]} 43. Kg1 {[%clk
0:00:21.1]} 43... h5 {[%clk 0:01:34.2]} 44. h4 {[%clk 0:00:21.3]} 44... Qd2
{[%clk 0:01:29.8]} 45. Qa1+ {[%clk 0:00:20.2]} 45... Kg8 {[%clk 0:01:29.8]} 46.
Nf6+ {[%clk 0:00:20.7]} 46... Kf8 {[%clk 0:01:29.9]} 47. Ne4 {[%clk 0:00:17.8]}
47... Qe2 {[%clk 0:01:30.2]} 48. Qh8+ {[%clk 0:00:16.3]} 48... Ke7 {[%clk
0:01:30.7]} 49. Qf6+ {[%clk 0:00:16]} 49... Kf8 {[%clk 0:01:30.9]} 50. Ng5
{[%clk 0:00:15.6]} 50... Qd1+ {[%clk 0:01:29.7]} 51. Kh2 {[%clk 0:00:15.7]}
51... Qd5 {[%clk 0:01:30.6]} 52. Qf3 {[%clk 0:00:13.9]} 52... Qc4 {[%clk
0:01:30.3]} 53. Kg2 {[%clk 0:00:14.4]} 53... Qa2 {[%clk 0:01:30.1]} 54. Nh3
{[%clk 0:00:14.7]} 54... Kg7 {[%clk 0:01:30.4]} 55. Nf4 {[%clk 0:00:15.3]} 55...
Qc4 {[%clk 0:01:30.3]} 56. Nd5 {[%clk 0:00:15.7]} 56... Qd4 {[%clk 0:01:30]} 57.
Ne3 {[%clk 0:00:16.1]} 57... Qb2 {[%clk 0:01:29.7]} 58. Qd5 {[%clk 0:00:16.4]}
58... Qa1 {[%clk 0:01:29.7]} 59. Nc4 {[%clk 0:00:16.9]} 59... Qc1 {[%clk
0:01:27.3]} 60. Nd6 {[%clk 0:00:16.8]} 60... Kh6 {[%clk 0:01:19]} 61. Qg5+
{[%clk 0:00:11.9]} 61... Kg7 {[%clk 0:01:18.4]} 62. Qxc1 {[%clk 0:00:11.5]} 1-0

[Event "Early-Titled-Tuesday-Blitz-January-16-2024"]
[Site "Chess.com"]
[Date "2024.01.16"]
[Round "4"]
[White "Thjop"]
[Black "Arimin1329"]
[Result "0-1"]
[WhiteElo "2639"]
[BlackElo "2422"]
[TimeControl "180+1"]
[EndTime "8:41:15 PST"]
[Termination "Arimin1329 won by resignation"]

1. d4 {[%clk 0:03:00.5]} 1... Nf6 {[%clk 0:02:59.7]} 2. g3 {[%clk 0:03:00.3]}
2... d5 {[%clk 0:02:53.5]} 3. Bg2 {[%clk 0:03:00]} 3... e6 {[%clk 0:02:52.8]} 4.
Nf3 {[%clk 0:02:59.9]} 4... Be7 {[%clk 0:02:53.3]} 5. O-O {[%clk 0:03:00.3]}
5... O-O {[%clk 0:02:54.2]} 6. c4 {[%clk 0:03:00.4]} 6... c6 {[%clk 0:02:54.2]}
7. Nc3 {[%clk 0:02:59.9]} 7... b6 {[%clk 0:02:53.6]} 8. Nd2 {[%clk 0:02:59.3]}
8... Ba6 {[%clk 0:02:51.7]} 9. b3 {[%clk 0:02:56.3]} 9... Nbd7 {[%clk
0:02:48.3]} 10. Re1 {[%clk 0:02:54.7]} 10... Rc8 {[%clk 0:02:47.8]} 11. e4
{[%clk 0:02:54.2]} 11... dxe4 {[%clk 0:02:48]} 12. Ndxe4 {[%clk 0:02:53.9]}
12... c5 {[%clk 0:02:42]} 13. d5 {[%clk 0:02:48.7]} 13... exd5 {[%clk
0:02:38.9]} 14. Nxd5 {[%clk 0:02:34.4]} 14... Nxd5 {[%clk 0:02:35.7]} 15. cxd5
{[%clk 0:02:35.3]} 15... Bf6 {[%clk 0:02:16.1]} 16. Nxf6+ {[%clk 0:02:33.8]}
16... Qxf6 {[%clk 0:02:14.5]} 17. Rb1 {[%clk 0:02:15.5]} 17... Rfe8 {[%clk
0:02:10]} 18. Bb2 {[%clk 0:02:15.1]} 18... Qf5 {[%clk 0:02:04.6]} 19. Qf3 {[%clk
0:02:09.7]} 19... Qc2 {[%clk 0:01:38.7]} 20. Qg4 {[%clk 0:02:09.5]} 20... Ne5
{[%clk 0:00:57.7]} 21. Qg5 {[%clk 0:01:07.9]} 21... Qxb2 {[%clk 0:00:53]} 22. h4
{[%clk 0:00:20]} 22... Qd4 {[%clk 0:00:35.8]} 23. Rbd1 {[%clk 0:00:17.8]} 23...
Qg4 {[%clk 0:00:28.2]} 24. d6 {[%clk 0:00:12.5]} 24... Qxg5 {[%clk 0:00:16.6]}
25. hxg5 {[%clk 0:00:13.4]} 25... Rcd8 {[%clk 0:00:15.9]} 26. f4 {[%clk
0:00:12.8]} 26... Nd7 {[%clk 0:00:15.2]} 27. Rxe8+ {[%clk 0:00:12.1]} 27... Rxe8
{[%clk 0:00:16.1]} 28. Bc6 {[%clk 0:00:11.9]} 28... Rd8 {[%clk 0:00:16]} 29. Re1
{[%clk 0:00:11.3]} 29... Kf8 {[%clk 0:00:16.3]} 30. Re7 {[%clk 0:00:11]} 30...
Bc8 {[%clk 0:00:15.5]} 31. f5 {[%clk 0:00:09.6]} 31... Nb8 {[%clk 0:00:13.8]}
32. Rxa7 {[%clk 0:00:05.9]} 32... Nxc6 {[%clk 0:00:13.8]} 0-1

[Event "Early-Titled-Tuesday-Blitz-January-16-2024"]
[Site "Chess.com"]
[Date "2024.01.16"]
[Round "4"]
[White "larsmandreassen"]
[Black "jinbojinbo"]
[Result "0-1"]
[WhiteElo "2227"]
[BlackElo "2635"]
[TimeControl "180+1"]
[EndTime "8:41:16 PST"]
[Termination "jinbojinbo won by resignation"]

1. d4 {[%clk 0:03:00.9]} 1... Nf6 {[%clk 0:02:59.2]} 2. Nf3 {[%clk 0:02:58]}
2... g6 {[%clk 0:02:59]} 3. c4 {[%clk 0:02:57.7]} 3... Bg7 {[%clk 0:02:58.9]} 4.
Nc3 {[%clk 0:02:58.4]} 4... O-O {[%clk 0:02:59.1]} 5. g3 {[%clk 0:02:58.1]} 5...
c6 {[%clk 0:02:56.7]} 6. Bg2 {[%clk 0:02:58.6]} 6... d5 {[%clk 0:02:56.6]} 7.
cxd5 {[%clk 0:02:57]} 7... cxd5 {[%clk 0:02:56.4]} 8. O-O {[%clk 0:02:57.9]}
8... Nc6 {[%clk 0:02:52.6]} 9. Ne5 {[%clk 0:02:54.6]} 9... Bf5 {[%clk
0:02:52.5]} 10. Nxc6 {[%clk 0:02:47.1]} 10... bxc6 {[%clk 0:02:51.6]} 11. Na4
{[%clk 0:02:47.7]} 11... Nd7 {[%clk 0:02:49.2]} 12. e3 {[%clk 0:02:35.7]} 12...
e5 {[%clk 0:02:42.9]} 13. g4 {[%clk 0:02:31.8]} 13... Be6 {[%clk 0:02:41.6]} 14.
f4 {[%clk 0:02:23.8]} 14... exf4 {[%clk 0:02:28.9]} 15. exf4 {[%clk 0:02:21.1]}
15... f5 {[%clk 0:01:37.7]} 16. g5 {[%clk 0:02:11.2]} 16... Qa5 {[%clk 0:01:37]}
17. Be3 {[%clk 0:01:52.6]} 17... Rfe8 {[%clk 0:01:36.6]} 18. Rc1 {[%clk
0:01:47.3]} 18... Nb6 {[%clk 0:01:32.9]} 19. Nc5 {[%clk 0:01:43.6]} 19... Nc4
{[%clk 0:01:31.5]} 20. Rxc4 {[%clk 0:01:34.5]} 20... dxc4 {[%clk 0:01:29.6]} 21.
Bxc6 {[%clk 0:01:35.1]} 21... Bf7 {[%clk 0:01:24.8]} 22. Bxe8 {[%clk 0:01:18.9]}
22... Rxe8 {[%clk 0:01:23.8]} 23. Bf2 {[%clk 0:01:18]} 23... Qxa2 {[%clk
0:01:19.1]} 24. Qa4 {[%clk 0:01:07.3]} 24... Qxa4 {[%clk 0:01:12.9]} 25. Nxa4
{[%clk 0:01:08.2]} 25... Re4 {[%clk 0:01:08]} 26. Rd1 {[%clk 0:01:06.3]} 26...
Rxf4 {[%clk 0:01:07.4]} 27. d5 {[%clk 0:01:06.6]} 27... Rg4+ {[%clk 0:00:50.2]}
28. Kf1 {[%clk 0:01:02.8]} 28... Be8 {[%clk 0:00:42.7]} 29. Nc5 {[%clk
0:00:59.6]} 29... Bb5 {[%clk 0:00:31.7]} 30. Ke1 {[%clk 0:00:30.1]} 30... Bxb2
{[%clk 0:00:31]} 31. d6 {[%clk 0:00:24.1]} 31... c3 {[%clk 0:00:26.7]} 32. d7
{[%clk 0:00:17.2]} 32... Bxd7 {[%clk 0:00:26.6]} 33. Nxd7 {[%clk 0:00:17.8]}
33... c2 {[%clk 0:00:26.9]} 34. Nf6+ {[%clk 0:00:16]} 34... Bxf6 {[%clk
0:00:26.4]} 35. gxf6 {[%clk 0:00:15.7]} 35... cxd1=Q+ {[%clk 0:00:25.4]} 36.
Kxd1 {[%clk 0:00:16.1]} 36... Kf7 {[%clk 0:00:25.2]} 37. Bxa7 {[%clk 0:00:13.8]}
37... Kxf6 {[%clk 0:00:25.3]} 38. h3 {[%clk 0:00:14.5]} 38... Rg2 {[%clk
0:00:24.8]} 0-1

[Event "Early-Titled-Tuesday-Blitz-January-16-2024"]
[Site "Chess.com"]
[Date "2024.01.16"]
[Round "4"]
[White "elchacal664"]
[Black "marina1994"]
[Result "1-0"]
[WhiteElo "2367"]
[BlackElo "2526"]
[TimeControl "180+1"]
[EndTime "8:41:16 PST"]
[Termination "elchacal664 won by resignation"]

1. e4 {[%clk 0:02:59.3]} 1... c5 {[%clk 0:02:58.8]} 2. Nc3 {[%clk 0:02:58.3]}
2... d6 {[%clk 0:02:57.4]} 3. Bc4 {[%clk 0:02:56.3]} 3... a6 {[%clk 0:02:48.7]}
4. a4 {[%clk 0:02:55]} 4... g6 {[%clk 0:02:43.8]} 5. d3 {[%clk 0:02:53.8]} 5...
Bg7 {[%clk 0:02:43.7]} 6. f4 {[%clk 0:02:53.6]} 6... Nc6 {[%clk 0:02:41.4]} 7.
Nf3 {[%clk 0:02:54]} 7... Nd4 {[%clk 0:02:35.7]} 8. O-O {[%clk 0:02:50.7]} 8...
Bg4 {[%clk 0:02:33.8]} 9. h3 {[%clk 0:02:46.9]} 9... Bxf3 {[%clk 0:02:33.4]} 10.
Rxf3 {[%clk 0:02:47.8]} 10... Nxf3+ {[%clk 0:02:32]} 11. Qxf3 {[%clk 0:02:48.7]}
11... e6 {[%clk 0:02:28.7]} 12. f5 {[%clk 0:02:48]} 12... Qe7 {[%clk 0:02:24.2]}
13. fxe6 {[%clk 0:02:42]} 13... fxe6 {[%clk 0:02:23.8]} 14. Qg4 {[%clk
0:02:28.1]} 14... Nf6 {[%clk 0:01:54.3]} 15. Qxe6 {[%clk 0:02:26.8]} 15... Qxe6
{[%clk 0:01:53.8]} 16. Bxe6 {[%clk 0:02:27.7]} 16... Ke7 {[%clk 0:01:40.3]} 17.
Bc4 {[%clk 0:02:25.4]} 17... h6 {[%clk 0:01:39.8]} 18. Bf4 {[%clk 0:02:22.3]}
18... Rad8 {[%clk 0:01:34.6]} 19. Re1 {[%clk 0:02:18.6]} 19... Kd7 {[%clk
0:01:27.2]} 20. g4 {[%clk 0:02:06.7]} 20... g5 {[%clk 0:01:15.4]} 21. Bg3 {[%clk
0:02:05.1]} 21... Rde8 {[%clk 0:01:14.1]} 22. Bf7 {[%clk 0:01:48.1]} 22... Re7
{[%clk 0:01:13.2]} 23. Bg6 {[%clk 0:01:46.4]} 23... Kc6 {[%clk 0:01:11.6]} 24.
Rf1 {[%clk 0:01:38]} 24... Rf8 {[%clk 0:01:02.7]} 25. Bf5 {[%clk 0:00:53.9]}
25... h5 {[%clk 0:00:58.7]} 26. Nd1 {[%clk 0:00:43.9]} 26... hxg4 {[%clk
0:00:54.3]} 27. hxg4 {[%clk 0:00:44.8]} 27... Nd7 {[%clk 0:00:51.8]} 28. Kg2
{[%clk 0:00:38.3]} 28... Kc7 {[%clk 0:00:43.1]} 29. Ne3 {[%clk 0:00:37]} 29...
Nf6 {[%clk 0:00:39.1]} 30. Nc4 {[%clk 0:00:35]} 30... Rd8 {[%clk 0:00:37.7]} 31.
e5 {[%clk 0:00:32.5]} 31... dxe5 {[%clk 0:00:36.5]} 32. Nxe5 {[%clk 0:00:30.8]}
32... Rxe5 {[%clk 0:00:36.3]} 33. Bxe5+ {[%clk 0:00:30.1]} 33... Kb6 {[%clk
0:00:36.1]} 34. Bg6 {[%clk 0:00:26.2]} 34... Ne8 {[%clk 0:00:33.7]} 35. Bxg7
{[%clk 0:00:22.7]} 35... Nxg7 {[%clk 0:00:33.9]} 36. Rf6+ {[%clk 0:00:22.8]}
36... Ka7 {[%clk 0:00:33.4]} 37. Rf7 {[%clk 0:00:23.2]} 37... Ne6 {[%clk
0:00:33]} 38. Be4 {[%clk 0:00:22]} 38... Nf4+ {[%clk 0:00:32.8]} 39. Kf3 {[%clk
0:00:21.8]} 39... Nd5 {[%clk 0:00:27.8]} 40. c4 {[%clk 0:00:17.5]} 40... Nb4
{[%clk 0:00:21.1]} 41. Rxb7+ {[%clk 0:00:17.1]} 1-0

[Event "Early-Titled-Tuesday-Blitz-January-16-2024"]
[Site "Chess.com"]
[Date "2024.01.16"]
[Round "4"]
[White "Viktor_Poddubnyi"]
[Black "maurovargas01"]
[Result "1-0"]
[WhiteElo "2299"]
[BlackElo "1853"]
[TimeControl "180+1"]
[EndTime "8:41:17 PST"]
[Termination "Viktor_Poddubnyi won by resignation"]

1. e4 {[%clk 0:03:00.9]} 1... d5 {[%clk 0:02:59.2]} 2. exd5 {[%clk 0:03:00.6]}
2... Qxd5 {[%clk 0:03:00.1]} 3. Nc3 {[%clk 0:03:00.2]} 3... Qa5 {[%clk
0:03:00.3]} 4. b4 {[%clk 0:03:00.3]} 4... Qxb4 {[%clk 0:02:59.4]} 5. Rb1 {[%clk
0:03:00.8]} 5... Qd6 {[%clk 0:02:59.5]} 6. Nf3 {[%clk 0:03:01.1]} 6... c6 {[%clk
0:02:58.6]} 7. d4 {[%clk 0:03:01.7]} 7... Nf6 {[%clk 0:02:58.3]} 8. Bd3 {[%clk
0:03:02]} 8... Bg4 {[%clk 0:02:58.4]} 9. Rxb7 {[%clk 0:02:55.3]} 9... Nbd7
{[%clk 0:02:54.5]} 10. O-O {[%clk 0:02:52.4]} 10... Nb6 {[%clk 0:02:54.3]} 11.
Ne4 {[%clk 0:02:23.4]} 11... Nxe4 {[%clk 0:02:50.7]} 12. Bxe4 {[%clk 0:02:24.3]}
12... Bc8 {[%clk 0:02:47.6]} 13. Rxb6 {[%clk 0:02:12.8]} 13... axb6 {[%clk
0:02:45.6]} 14. Ne5 {[%clk 0:02:13.4]} 14... Bb7 {[%clk 0:02:26.6]} 15. Qf3
{[%clk 0:01:41.1]} 15... Qf6 {[%clk 0:02:17.5]} 16. Qb3 {[%clk 0:01:39.9]} 16...
b5 {[%clk 0:02:01.1]} 17. c4 {[%clk 0:01:34.6]} 17... Qe6 {[%clk 0:01:52.1]} 18.
Qb1 {[%clk 0:00:34]} 18... f6 {[%clk 0:01:42.2]} 19. Nxc6 {[%clk 0:00:31.5]}
19... Bxc6 {[%clk 0:01:36.2]} 20. d5 {[%clk 0:00:31.7]} 20... Bxd5 {[%clk
0:01:22.2]} 21. Bxd5 {[%clk 0:00:30.1]} 21... Qa6 {[%clk 0:01:13.3]} 22. Bxa8
{[%clk 0:00:18.9]} 22... Qxa8 {[%clk 0:01:11.3]} 23. Qxb5+ {[%clk 0:00:19.5]}
23... Kf7 {[%clk 0:01:09.5]} 24. Rd1 {[%clk 0:00:19.5]} 24... g6 {[%clk
0:01:07.6]} 25. a4 {[%clk 0:00:15.7]} 25... Kg7 {[%clk 0:01:06.1]} 26. Rd7
{[%clk 0:00:14.8]} 26... Qe4 {[%clk 0:00:59.2]} 27. Be3 {[%clk 0:00:15.4]} 27...
h5 {[%clk 0:00:45.8]} 28. h3 {[%clk 0:00:15.9]} 28... g5 {[%clk 0:00:45.3]} 29.
a5 {[%clk 0:00:15.7]} 29... Kh6 {[%clk 0:00:42.1]} 30. a6 {[%clk 0:00:15.2]}
30... Bg7 {[%clk 0:00:29.6]} 31. Qb7 {[%clk 0:00:15.6]} 31... Re8 {[%clk
0:00:17.8]} 32. Qxe4 {[%clk 0:00:14.6]} 1-0

[Event "Early-Titled-Tuesday-Blitz-January-16-2024"]
[Site "Chess.com"]
[Date "2024.01.16"]
[Round "4"]
[White "Mikhail_Golubev"]
[Black "Vazabanga"]
[Result "0-1"]
[WhiteElo "2540"]
[BlackElo "2698"]
[TimeControl "180+1"]
[EndTime "8:41:19 PST"]
[Termination "Vazabanga won on time"]

1. e4 {[%clk 0:03:00.9]} 1... c5 {[%clk 0:02:55.2]} 2. Nf3 {[%clk 0:03:00.4]}
2... d6 {[%clk 0:02:55.6]} 3. d4 {[%clk 0:03:00]} 3... cxd4 {[%clk 0:02:56.5]}
4. Nxd4 {[%clk 0:03:00.2]} 4... Nf6 {[%clk 0:02:57.1]} 5. Nc3 {[%clk 0:03:00.4]}
5... Nc6 {[%clk 0:02:57.6]} 6. Bc4 {[%clk 0:02:59.6]} 6... Qb6 {[%clk
0:02:57.1]} 7. Ndb5 {[%clk 0:02:58.5]} 7... a6 {[%clk 0:02:56.2]} 8. Be3 {[%clk
0:02:58.1]} 8... Qd8 {[%clk 0:02:56.1]} 9. Nd4 {[%clk 0:02:58.1]} 9... e5 {[%clk
0:02:41.6]} 10. Nf5 {[%clk 0:02:43.7]} 10... g6 {[%clk 0:02:20.8]} 11. Nh6
{[%clk 0:02:34.9]} 11... Be6 {[%clk 0:01:57.3]} 12. Nd5 {[%clk 0:02:11.1]} 12...
Nd7 {[%clk 0:01:52.3]} 13. O-O {[%clk 0:01:53.8]} 13... Rc8 {[%clk 0:01:33.1]}
14. Qd2 {[%clk 0:01:44.3]} 14... Qh4 {[%clk 0:01:25.4]} 15. Bg5 {[%clk 0:01:09]}
15... Qxe4 {[%clk 0:01:22.7]} 16. Bb3 {[%clk 0:01:08.8]} 16... Nd4 {[%clk
0:01:05.2]} 17. Nf6+ {[%clk 0:00:43.4]} 17... Nxf6 {[%clk 0:00:57.3]} 18. Bxf6
{[%clk 0:00:44.3]} 18... Ne2+ {[%clk 0:00:48.4]} 19. Kh1 {[%clk 0:00:44]} 19...
Nf4 {[%clk 0:00:40.4]} 20. f3 {[%clk 0:00:38.1]} 20... Qc6 {[%clk 0:00:40.1]}
21. Bxh8 {[%clk 0:00:22.1]} 21... Bxh6 {[%clk 0:00:40.1]} 22. g3 {[%clk
0:00:20.7]} 22... Ke7 {[%clk 0:00:33.7]} 23. Bxe5 {[%clk 0:00:13.5]} 23... dxe5
{[%clk 0:00:32.7]} 24. gxf4 {[%clk 0:00:12.5]} 24... Bxf4 {[%clk 0:00:33.4]} 25.
Qb4+ {[%clk 0:00:12.4]} 25... Kf6 {[%clk 0:00:28.9]} 26. Rad1 {[%clk 0:00:12.1]}
26... Qc5 {[%clk 0:00:10.9]} 27. Qxb7 {[%clk 0:00:09.9]} 27... Bxb3 {[%clk
0:00:09.7]} 28. cxb3 {[%clk 0:00:08.6]} 28... Qc2 {[%clk 0:00:06]} 29. Qxa6+
{[%clk 0:00:06.7]} 29... Kg7 {[%clk 0:00:06.6]} 30. Qd3 {[%clk 0:00:01.7]} 30...
Qxb2 {[%clk 0:00:06.1]} 0-1

[Event "Early-Titled-Tuesday-Blitz-January-16-2024"]
[Site "Chess.com"]
[Date "2024.01.16"]
[Round "4"]
[White "TheNextLevelFan"]
[Black "topce"]
[Result "1-0"]
[WhiteElo "2603"]
[BlackElo "2369"]
[TimeControl "180+1"]
[EndTime "8:41:19 PST"]
[Termination "TheNextLevelFan won on time"]

1. e4 {[%clk 0:03:00.9]} 1... c5 {[%clk 0:02:59.5]} 2. c3 {[%clk 0:03:00.5]}
2... e6 {[%clk 0:02:58.6]} 3. d4 {[%clk 0:02:59.5]} 3... d5 {[%clk 0:02:58.5]}
4. e5 {[%clk 0:03:00]} 4... Nc6 {[%clk 0:02:56.9]} 5. Nf3 {[%clk 0:02:59.7]}
5... Nge7 {[%clk 0:02:56.3]} 6. Bd3 {[%clk 0:02:57.5]} 6... Nf5 {[%clk
0:02:55.5]} 7. Bxf5 {[%clk 0:02:55.3]} 7... exf5 {[%clk 0:02:55.5]} 8. O-O
{[%clk 0:02:56.2]} 8... Be7 {[%clk 0:02:50.7]} 9. dxc5 {[%clk 0:02:50.9]} 9...
Bxc5 {[%clk 0:02:49.2]} 10. Nbd2 {[%clk 0:02:49.8]} 10... Be6 {[%clk 0:02:42.1]}
11. Nb3 {[%clk 0:02:48.2]} 11... Be7 {[%clk 0:02:40.6]} 12. Be3 {[%clk
0:02:48.6]} 12... g5 {[%clk 0:02:38.9]} 13. Bc5 {[%clk 0:02:47.7]} 13... f4
{[%clk 0:02:32.7]} 14. Re1 {[%clk 0:02:43.5]} 14... h5 {[%clk 0:02:03.1]} 15.
Nfd4 {[%clk 0:02:43.3]} 15... Nxd4 {[%clk 0:01:53.2]} 16. Qxd4 {[%clk
0:02:40.3]} 16... b6 {[%clk 0:01:50.9]} 17. Bxe7 {[%clk 0:02:39]} 17... Qxe7
{[%clk 0:01:50.9]} 18. a4 {[%clk 0:02:32.8]} 18... Rc8 {[%clk 0:01:38.1]} 19. a5
{[%clk 0:02:31.4]} 19... Rc4 {[%clk 0:01:36.6]} 20. axb6 {[%clk 0:02:18.5]}
20... Rxd4 {[%clk 0:01:08.5]} 21. bxa7 {[%clk 0:02:18.4]} 21... O-O {[%clk
0:01:05.4]} 22. a8=Q {[%clk 0:02:18.2]} 22... Re4 {[%clk 0:00:46.1]} 23. Qa6
{[%clk 0:02:05.5]} 23... Rb8 {[%clk 0:00:44]} 24. Nd4 {[%clk 0:01:54.7]} 24...
Rxb2 {[%clk 0:00:41.4]} 25. Qd3 {[%clk 0:01:40.3]} 25... Qb7 {[%clk 0:00:28.7]}
26. f3 {[%clk 0:01:16.7]} 26... Rxe1+ {[%clk 0:00:16.5]} 27. Rxe1 {[%clk
0:01:17.6]} 27... Qb6 {[%clk 0:00:16.8]} 28. h4 {[%clk 0:01:08.7]} 28... g4
{[%clk 0:00:14.6]} 29. fxg4 {[%clk 0:01:06.2]} 29... hxg4 {[%clk 0:00:14.5]} 30.
Rf1 {[%clk 0:01:05.3]} 30... f3 {[%clk 0:00:13.1]} 31. gxf3 {[%clk 0:01:04.2]}
31... g3 {[%clk 0:00:13.5]} 32. f4 {[%clk 0:01:00.9]} 32... Qa7 {[%clk
0:00:13.3]} 33. Qxg3+ {[%clk 0:00:59.9]} 33... Kf8 {[%clk 0:00:12.9]} 34. f5
{[%clk 0:00:59.6]} 34... Bxf5 {[%clk 0:00:05.5]} 35. Rxf5 {[%clk 0:00:58.7]}
35... Rb1+ {[%clk 0:00:06.1]} 36. Rf1 {[%clk 0:00:57.5]} 36... Qa1 {[%clk
0:00:05.7]} 37. Rxb1 {[%clk 0:00:56.3]} 37... Qxb1+ {[%clk 0:00:06.1]} 38. Kh2
{[%clk 0:00:56.1]} 38... Qb2+ {[%clk 0:00:04.7]} 39. Kh3 {[%clk 0:00:56.4]}
39... Qb1 {[%clk 0:00:04.4]} 40. Qf3 {[%clk 0:00:55.1]} 40... Ke7 {[%clk
0:00:02.5]} 41. Qf6+ {[%clk 0:00:54]} 41... Ke8 {[%clk 0:00:02.8]} 42. Qc6+
{[%clk 0:00:52.5]} 42... Kf8 {[%clk 0:00:02.6]} 43. Qc8+ {[%clk 0:00:51.5]}
43... Kg7 {[%clk 0:00:02.9]} 44. Nf5+ {[%clk 0:00:48]} 44... Kg6 {[%clk
0:00:02.5]} 45. Ne7+ {[%clk 0:00:45.3]} 45... Kh5 {[%clk 0:00:02.5]} 46. Qh8+
{[%clk 0:00:44.5]} 1-0